[Event "SS Manhem Chess Week 2019 Goteborg Open"]
[Site "Molnlycke kulturhus, Biblioteksgatan 2, Molnlycke, Sweden"]
[Date "2019.08.16"]
[Round "3.18"]
[White "Ziegler, Nathalie"]
[Black "Torngren, Gustav"]
[Result "0-1"]
[TimeControl "15 minutes + 5 seconds per move from move one (Round 1 - 4) / 90 minutes + 30 seconds per move from move one (Round 5 - 8)"]
[WhiteFideId "1715984"]
[BlackFideId "1728970"]
[WhiteElo "1846"]
[BlackElo "2061"]

1. Nf3 {[%clk 00:15:05]} {[%emt 00:00:03]} g6 {[%clk 00:15:06]} {[%emt
00:00:04]} 2. c4 {[%clk 00:15:07]} {[%emt 00:00:04]} Bg7 {[%emt 00:00:15]} 3.
d4 {[%clk 00:15:07]} c5 {[%clk 00:14:57]} {[%emt 00:00:09]} 4. Nc3 {[%clk
00:14:42]} {[%emt 00:00:29]} cxd4 {[%clk 00:14:48]} {[%emt 00:00:14]} 5. Nxd4
{[%clk 00:14:45]} {[%emt 00:00:02]} Nc6 {[%clk 00:14:43]} {[%emt 00:00:10]} 6.
e3 {[%clk 00:12:55]} {[%emt 00:01:54]} Nf6 {[%clk 00:14:45]} {[%emt 00:00:03]}
7. g3 {[%clk 00:12:41]} {[%emt 00:00:19]} d6 {[%clk 00:14:01]} {[%emt
00:00:49]} 8. Bg2 {[%clk 00:12:10]} {[%emt 00:00:36]} Bd7 {[%clk 00:14:04]}
{[%emt 00:00:02]} 9. O-O {[%clk 00:12:08]} {[%emt 00:00:07]} O-O {[%clk
00:14:06]} {[%emt 00:00:02]} 10. b3 {[%clk 00:11:01]} {[%emt 00:01:12]} Nxd4
{[%clk 00:13:26]} {[%emt 00:00:46]} 11. exd4 {[%clk 00:11:03]} {[%emt
00:00:03]} Bc6 {[%clk 00:13:28]} {[%emt 00:00:02]} 12. d5 {[%clk 00:10:26]}
{[%emt 00:00:43]} Bd7 {[%clk 00:12:23]} {[%emt 00:01:10]} 13. Bg5 {[%clk
00:09:27]} {[%emt 00:01:03]} h6 {[%clk 00:12:03]} {[%emt 00:00:25]} 14. Bd2
{[%clk 00:09:26]} {[%emt 00:00:06]} a6 {[%clk 00:11:57]} {[%emt 00:00:11]} 15.
Rc1 {[%clk 00:09:11]} {[%emt 00:00:20]} b5 {[%clk 00:10:56]} {[%emt 00:01:07]}
16. Ne4 {[%clk 00:09:00]} {[%emt 00:00:16]} Nxe4 {[%clk 00:10:35]} {[%emt
00:00:26]} 17. Bxe4 {[%clk 00:09:02]} {[%emt 00:00:02]} bxc4 {[%clk 00:10:31]}
{[%emt 00:00:09]} 18. bxc4 {[%clk 00:09:03]} {[%emt 00:00:05]} Qc7 {[%clk
00:10:16]} {[%emt 00:00:20]} 19. Bc3 {[%clk 00:07:08]} {[%emt 00:01:59]} Bxc3
{[%clk 00:09:22]} {[%emt 00:00:59]} 20. Rxc3 {[%clk 00:07:12]} {[%emt
00:00:02]} Qc5 {[%clk 00:09:22]} {[%emt 00:00:04]} 21. Qc2 {[%clk 00:07:09]}
{[%emt 00:00:08]} Kg7 {[%clk 00:09:16]} {[%emt 00:00:11]} 22. Rb3 {[%clk
00:06:33]} {[%emt 00:00:41]} Rfc8 {[%clk 00:08:55]} {[%emt 00:00:26]} 23. Qb2+
{[%clk 00:06:16]} {[%emt 00:00:22]} f6 {[%clk 00:08:51]} {[%emt 00:00:09]} 24.
Bd3 {[%clk 00:04:36]} {[%emt 00:01:45]} Ra7 {[%clk 00:08:36]} {[%emt 00:00:21]}
25. Rb8 {[%clk 00:04:33]} {[%emt 00:00:09]} Rac7 {[%clk 00:07:30]} {[%emt
00:01:11]} 26. Rxc8 {[%clk 00:04:23]} {[%emt 00:00:14]} Bxc8 {[%clk 00:07:29]}
{[%emt 00:00:05]} 27. Qc2 {[%clk 00:04:17]} {[%emt 00:00:11]} a5 {[%clk
00:06:34]} {[%emt 00:01:00]} 28. Re1 {[%clk 00:04:00]} {[%emt 00:00:22]} Ba6
{[%clk 00:05:48]} {[%emt 00:00:50]} 29. Qa4 {[%clk 00:02:51]} {[%emt 00:01:14]}
Kf7 {[%clk 00:05:09]} {[%emt 00:00:44]} 30. Qc2 {[%clk 00:02:29]} {[%emt
00:00:28]} Bxc4 {[%clk 00:04:11]} {[%emt 00:01:02]} 31. Bxg6+ {[%clk 00:02:15]}
{[%emt 00:00:20]} Kg7 {[%clk 00:04:12]} {[%emt 00:00:04]} 32. Be8 {[%clk
00:02:13]} {[%emt 00:00:07]} Bxd5 {[%clk 00:00:45]} {[%emt 00:03:32]} 33. Qg6+
{[%clk 00:02:06]} {[%emt 00:00:11]} Kf8 {[%clk 00:00:49]} {[%emt 00:00:01]} 34.
Ba4 {[%clk 00:01:44]} {[%emt 00:00:27]} Qc1 {[%clk 00:00:51]} {[%emt 00:00:01]}
35. Rd1 {[%clk 00:00:39]} {[%emt 00:01:11]} Bf7 {[%clk 00:00:40]} {[%emt
00:00:16]} 36. Qg4 {[%clk 00:00:39]} {[%emt 00:00:04]} Qg5 {[%clk 00:00:42]}
{[%emt 00:00:05]} 37. Qe4 {[%clk 00:00:33]} {[%emt 00:00:10]} Kg7 {[%clk
00:00:19]} {[%emt 00:00:28]} 38. h4 {[%clk 00:00:36]} {[%emt 00:00:03]} Qg6
{[%clk 00:00:13]} {[%emt 00:00:11]} 39. Qa8 {[%clk 00:00:38]} {[%emt 00:00:04]}
Qg4 {[%clk 00:00:11]} {[%emt 00:00:07]} 40. Qd8 {[%clk 00:00:30]} {[%emt
00:00:13]} Qxa4 {[%clk 00:00:10]} {[%emt 00:00:06]} 41. Re1 {[%clk 00:00:32]}
{[%emt 00:00:03]} Qd7 {[%clk 00:00:12]} {[%emt 00:00:03]} 42. Qa8 {[%clk
00:00:32]} {[%emt 00:00:05]} Rc5 {[%clk 00:00:11]} {[%emt 00:00:06]} 43. Qf3
{[%clk 00:00:32]} {[%emt 00:00:05]} Re5 {[%clk 00:00:14]} {[%emt 00:00:01]} 44.
Rb1 {[%clk 00:00:32]} {[%emt 00:00:05]} Qf5 {[%clk 00:00:17]} {[%emt 00:00:02]}
45. Qxf5 {[%clk 00:00:27]} {[%emt 00:00:10]} Rxf5 {[%clk 00:00:22]} 46. f4
{[%clk 00:00:31]} Bxa2 {[%clk 00:00:23]} {[%emt 00:00:04]} 47. Rb7 {[%clk
00:00:34]} {[%emt 00:00:02]} Kf7 {[%clk 00:00:22]} {[%emt 00:00:06]} 48. Kf2
{[%clk 00:00:34]} {[%emt 00:00:05]} Rc5 {[%clk 00:00:23]} {[%emt 00:00:03]} 49.
Rb2 {[%clk 00:00:31]} {[%emt 00:00:08]} Be6 {[%clk 00:00:24]} {[%emt 00:00:05]}
50. Ke3 {[%clk 00:00:22]} {[%emt 00:00:14]} h5 {[%clk 00:00:26]} {[%emt
00:00:02]} 51. Kd4 {[%clk 00:00:18]} {[%emt 00:00:09]} Rc4+ {[%clk 00:00:26]}
{[%emt 00:00:05]} 52. Ke3 {[%clk 00:00:23]} Rc3+ {[%clk 00:00:30]} {[%emt
00:00:02]} 53. Kf2 {[%clk 00:00:26]} Rb3 {[%clk 00:00:33]} {[%emt 00:00:01]} 54.
Rd2 {[%clk 00:00:27]} {[%emt 00:00:05]} a4 {[%clk 00:00:35]} {[%emt 00:00:03]}
0-1

[Event "SS Manhem Chess Week 2019 Goteborg Open"]
[Site "Molnlycke kulturhus, Biblioteksgatan 2, Molnlycke, Sweden"]
[Date "2019.08.16"]
[Round "4.2"]
[White "Wiedenkeller, Michael"]
[Black "Ahlander, Bjorn"]
[Result "1-0"]
[TimeControl "15 minutes + 5 seconds per move from move one (Round 1 - 4) / 90 minutes + 30 seconds per move from move one (Round 5 - 8)"]
[WhiteTitle "IM"]
[BlackTitle "IM"]
[WhiteFideId "1700146"]
[BlackFideId "1700251"]
[WhiteElo "2456"]
[BlackElo "2390"]

1. d4 {[%clk 00:15:02]} {[%emt 00:00:08]} Nf6 {[%clk 00:15:09]} {[%emt
00:00:02]} 2. c4 {[%clk 00:15:06]} e6 {[%clk 00:15:12]} {[%emt 00:00:04]} 3.
Nc3 {[%clk 00:15:09]} Bb4 {[%clk 00:15:15]} {[%emt 00:00:02]} 4. Qc2 {[%clk
00:15:13]} d5 {[%clk 00:15:18]} {[%emt 00:00:03]} 5. a3 {[%clk 00:15:08]}
{[%emt 00:00:10]} Bxc3+ {[%clk 00:15:21]} {[%emt 00:00:02]} 6. Qxc3 {[%clk
00:15:12]} {[%emt 00:00:01]} O-O {[%clk 00:15:23]} {[%emt 00:00:02]} 7. Nf3
{[%clk 00:15:11]} {[%emt 00:00:06]} dxc4 {[%clk 00:15:26]} {[%emt 00:00:02]} 8.
Qxc4 {[%clk 00:15:09]} {[%emt 00:00:06]} b6 {[%clk 00:15:30]} {[%emt 00:00:02]}
9. Bg5 {[%clk 00:14:56]} {[%emt 00:00:18]} Ba6 {[%clk 00:15:27]} {[%emt
00:00:08]} 10. Qa4 {[%clk 00:14:27]} {[%emt 00:00:34]} Qd7 {[%clk 00:15:30]}
{[%emt 00:00:02]} 11. Qxd7 {[%clk 00:13:28]} {[%emt 00:01:05]} Nbxd7 {[%clk
00:15:31]} {[%emt 00:00:03]} 12. e3 {[%clk 00:13:19]} {[%emt 00:00:14]} Bxf1
{[%clk 00:15:32]} {[%emt 00:00:04]} 13. Rxf1 {[%clk 00:13:18]} {[%emt
00:00:06]} c5 {[%clk 00:15:03]} {[%emt 00:00:34]} 14. Ke2 {[%clk 00:13:14]}
{[%emt 00:00:09]} Rac8 {[%clk 00:14:45]} {[%emt 00:00:23]} 15. Rac1 {[%clk
00:13:02]} {[%emt 00:00:17]} h6 {[%clk 00:13:52]} {[%emt 00:00:58]} 16. Bf4
{[%clk 00:12:44]} {[%emt 00:00:23]} Rfd8 {[%clk 00:12:42]} {[%emt 00:01:15]} 17.
dxc5 {[%clk 00:09:01]} {[%emt 00:03:49]} Nxc5 {[%clk 00:12:23]} {[%emt
00:00:24]} 18. Rfd1 {[%clk 00:08:53]} {[%emt 00:00:12]} Nd5 {[%clk 00:12:14]}
{[%emt 00:00:14]} 19. Bg3 {[%clk 00:08:47]} {[%emt 00:00:12]} Nb3 {[%clk
00:11:49]} {[%emt 00:00:30]} 20. Rxc8 {[%clk 00:08:47]} {[%emt 00:00:05]} Rxc8
{[%clk 00:11:53]} {[%emt 00:00:01]} 21. Nd4 {[%clk 00:08:42]} {[%emt 00:00:10]}
Nxd4+ {[%clk 00:11:19]} {[%emt 00:00:39]} 22. Rxd4 {[%clk 00:08:46]} f5 {[%clk
00:11:22]} {[%emt 00:00:01]} 23. Kd2 {[%clk 00:08:26]} {[%emt 00:00:25]} b5
{[%clk 00:11:18]} {[%emt 00:00:09]} 24. f3 {[%clk 00:08:18]} {[%emt 00:00:13]}
a6 {[%clk 00:10:54]} {[%emt 00:00:30]} 25. e4 {[%clk 00:08:19]} {[%emt
00:00:03]} fxe4 {[%clk 00:10:54]} {[%emt 00:00:04]} 26. fxe4 {[%clk 00:08:24]}
Nb6 {[%clk 00:10:57]} {[%emt 00:00:03]} 27. b3 {[%clk 00:08:16]} {[%emt
00:00:13]} Rc6 {[%clk 00:10:56]} {[%emt 00:00:06]} 28. Rd6 {[%clk 00:08:11]}
{[%emt 00:00:09]} Rxd6+ {[%clk 00:10:58]} {[%emt 00:00:04]} 29. Bxd6 {[%clk
00:08:15]} Nd7 {[%clk 00:10:13]} {[%emt 00:00:51]} 30. Kc3 {[%clk 00:08:03]}
{[%emt 00:00:16]} e5 {[%clk 00:08:49]} {[%emt 00:01:29]} 31. Kb4 {[%clk
00:07:40]} {[%emt 00:00:29]} Kf7 {[%clk 00:08:53]} {[%emt 00:00:02]} 32. Ka5
{[%clk 00:07:25]} {[%emt 00:00:19]} Ke6 {[%clk 00:08:55]} {[%emt 00:00:03]} 33.
Bb4 {[%clk 00:07:24]} {[%emt 00:00:04]} Nb8 {[%clk 00:05:25]} {[%emt 00:03:36]}
34. Kb6 {[%clk 00:07:19]} {[%emt 00:00:10]} Kd7 {[%clk 00:05:28]} {[%emt
00:00:02]} 35. Bf8 {[%clk 00:06:49]} {[%emt 00:00:34]} h5 {[%clk 00:05:31]}
{[%emt 00:00:02]} 36. Bxg7 {[%clk 00:06:31]} {[%emt 00:00:23]} Nc6 {[%clk
00:05:35]} {[%emt 00:00:02]} 37. Kxa6 {[%clk 00:06:06]} {[%emt 00:00:30]} Nd4
{[%clk 00:05:37]} {[%emt 00:00:02]} 38. Bxe5 {[%clk 00:05:39]} {[%emt
00:00:32]} Nxb3 {[%clk 00:05:40]} {[%emt 00:00:02]} 39. Kxb5 {[%clk 00:05:27]}
{[%emt 00:00:17]} Nd2 {[%clk 00:05:08]} {[%emt 00:00:37]} 40. a4 {[%clk
00:05:00]} {[%emt 00:00:33]} Nxe4 {[%clk 00:05:09]} {[%emt 00:00:04]} 41. a5
{[%clk 00:05:03]} {[%emt 00:00:01]} Ke6 {[%clk 00:04:13]} {[%emt 00:01:00]} 42.
a6 {[%clk 00:03:40]} {[%emt 00:01:29]} Kxe5 {[%clk 00:04:15]} {[%emt 00:00:03]}
43. a7 {[%clk 00:03:41]} {[%emt 00:00:04]} Nd6+ {[%clk 00:04:18]} {[%emt
00:00:02]} 44. Kc6 {[%clk 00:03:44]} {[%emt 00:00:02]} 1-0

[Event "SS Manhem Chess Week 2019 Goteborg Open"]
[Site "Molnlycke kulturhus, Biblioteksgatan 2, Molnlycke, Sweden"]
[Date "2019.08.16"]
[Round "4.3"]
[White "Kockum, Anton Frisk"]
[Black "Le, Quang Long"]
[Result "0-1"]
[TimeControl "15 minutes + 5 seconds per move from move one (Round 1 - 4) / 90 minutes + 30 seconds per move from move one (Round 5 - 8)"]
[WhiteTitle "FM"]
[BlackTitle "IM"]
[WhiteFideId "1709143"]
[BlackFideId "12401749"]
[WhiteElo "2367"]
[BlackElo "2411"]

1. d4 {[%clk 00:15:08]} {[%emt 00:00:02]} Nf6 {[%clk 00:13:19]} {[%emt
00:01:51]} 2. c4 {[%clk 00:15:11]} {[%emt 00:00:02]} c5 {[%clk 00:13:17]}
{[%emt 00:00:07]} 3. d5 {[%clk 00:15:13]} {[%emt 00:00:02]} e6 {[%clk
00:12:51]} {[%emt 00:00:31]} 4. Nc3 {[%clk 00:15:16]} {[%emt 00:00:02]} exd5
{[%clk 00:12:55]} {[%emt 00:00:02]} 5. cxd5 {[%clk 00:15:20]} {[%emt 00:00:02]}
d6 {[%clk 00:12:58]} 6. e4 {[%clk 00:15:21]} {[%emt 00:00:04]} a6 {[%clk
00:13:01]} {[%emt 00:00:03]} 7. a4 {[%clk 00:15:23]} {[%emt 00:00:02]} g6
{[%clk 00:13:04]} {[%emt 00:00:02]} 8. h3 {[%clk 00:15:07]} {[%emt 00:00:20]}
Bg7 {[%clk 00:13:08]} {[%emt 00:00:02]} 9. Nf3 {[%clk 00:15:11]} {[%emt
00:00:02]} O-O {[%clk 00:13:10]} {[%emt 00:00:02]} 10. Bd3 {[%clk 00:15:15]}
{[%emt 00:00:01]} Nbd7 {[%clk 00:12:44]} {[%emt 00:00:31]} 11. Bf4 {[%clk
00:14:48]} {[%emt 00:00:32]} Qe7 {[%clk 00:12:47]} {[%emt 00:00:02]} 12. O-O
{[%clk 00:14:43]} {[%emt 00:00:10]} Nh5 {[%clk 00:12:27]} {[%emt 00:00:25]} 13.
Bh2 {[%clk 00:14:46]} {[%emt 00:00:02]} Bh6 {[%clk 00:11:25]} {[%emt 00:01:07]}
14. Re1 {[%clk 00:09:55]} {[%emt 00:04:56]} f6 {[%clk 00:08:53]} {[%emt
00:02:38]} 15. Bf1 {[%clk 00:04:37]} {[%emt 00:05:22]} Ne5 {[%clk 00:08:37]}
{[%emt 00:00:21]} 16. Nd2 {[%clk 00:04:07]} {[%emt 00:00:36]} Bd7 {[%clk
00:07:40]} {[%emt 00:01:02]} 17. Kh1 {[%clk 00:03:57]} {[%emt 00:00:14]} Rab8
{[%clk 00:06:56]} {[%emt 00:00:48]} 18. a5 {[%clk 00:04:00]} {[%emt 00:00:03]}
Bf4 {[%clk 00:05:51]} {[%emt 00:01:10]} 19. Nc4 {[%clk 00:03:42]} {[%emt
00:00:23]} Bxh2 {[%clk 00:05:38]} {[%emt 00:00:18]} 20. Kxh2 {[%clk 00:03:45]}
{[%emt 00:00:02]} b5 {[%clk 00:03:38]} {[%emt 00:02:05]} 21. axb6 {[%clk
00:03:45]} {[%emt 00:00:05]} Nxc4 {[%clk 00:03:41]} {[%emt 00:00:02]} 22. Bxc4
{[%clk 00:03:47]} {[%emt 00:00:03]} Rxb6 {[%clk 00:03:43]} {[%emt 00:00:03]} 23.
Qd2 {[%clk 00:03:19]} {[%emt 00:00:34]} Rfb8 {[%clk 00:03:32]} {[%emt
00:00:16]} 24. b3 {[%clk 00:03:22]} {[%emt 00:00:02]} Qe5+ {[%clk 00:03:05]}
{[%emt 00:00:31]} 25. g3 {[%clk 00:03:22]} {[%emt 00:00:05]} Bb5 {[%clk
00:02:22]} {[%emt 00:00:48]} 26. f4 {[%clk 00:02:49]} {[%emt 00:00:39]} Qe7
{[%clk 00:01:31]} {[%emt 00:00:55]} 27. Bxb5 {[%clk 00:01:06]} {[%emt
00:01:48]} axb5 {[%clk 00:01:35]} {[%emt 00:00:01]} 28. g4 {[%clk 00:01:09]}
{[%emt 00:00:01]} Ng7 {[%clk 00:01:35]} {[%emt 00:00:05]} 29. e5 {[%clk
00:00:27]} {[%emt 00:00:47]} fxe5 {[%clk 00:00:41]} {[%emt 00:01:00]} 30. fxe5
{[%clk 00:00:31]} b4 {[%clk 00:00:45]} 31. Na4 {[%clk 00:00:29]} {[%emt
00:00:08]} Ra6 {[%clk 00:00:26]} {[%emt 00:00:23]} 32. e6 {[%clk 00:00:26]}
{[%emt 00:00:08]} Qf6 {[%clk 00:00:09]} {[%emt 00:00:23]} 33. Rf1 {[%clk
00:00:13]} {[%emt 00:00:17]} Qe5+ {[%clk 00:00:13]} 34. Qf4 {[%clk 00:00:15]}
{[%emt 00:00:04]} Qxf4+ {[%clk 00:00:08]} {[%emt 00:00:10]} 35. Rxf4 {[%clk
00:00:19]} g5 {[%clk 00:00:11]} {[%emt 00:00:02]} 36. Rf7 {[%clk 00:00:20]}
{[%emt 00:00:03]} c4 {[%clk 00:00:14]} {[%emt 00:00:03]} 37. Raf1 {[%clk
00:00:21]} {[%emt 00:00:03]} cxb3 {[%clk 00:00:07]} {[%emt 00:00:12]} 38. e7
{[%clk 00:00:23]} {[%emt 00:00:03]} Raa8 {[%clk 00:00:09]} {[%emt 00:00:03]} 39.
Nb6 {[%clk 00:00:26]} {[%emt 00:00:02]} Ra2+ {[%clk 00:00:13]} 40. Kg3 {[%clk
00:00:23]} {[%emt 00:00:08]} Ne8 {[%clk 00:00:13]} {[%emt 00:00:05]} 41. Rf8+
{[%clk 00:00:20]} {[%emt 00:00:08]} Kg7 {[%clk 00:00:17]} {[%emt 00:00:01]} 42.
Nd7 {[%clk 00:00:12]} {[%emt 00:00:13]} Rc8 {[%clk 00:00:16]} {[%emt 00:00:05]}
43. R1f7+ {[%clk 00:00:11]} {[%emt 00:00:07]} Kh6 {[%clk 00:00:20]} {[%emt
00:00:01]} 44. Rh8 {[%clk 00:00:06]} {[%emt 00:00:09]} Rc3+ {[%clk 00:00:23]}
{[%emt 00:00:01]} 45. Rf3 {[%clk 00:00:11]} {[%emt 00:00:03]} b2 {[%clk
00:00:13]} {[%emt 00:00:15]} 46. Nf8 {[%clk 00:00:14]} {[%emt 00:00:06]} b1=Q
{[%clk 00:00:17]} {[%emt 00:00:06]} 0-1

[Event "SS Manhem Chess Week 2019 Goteborg Open"]
[Site "Molnlycke kulturhus, Biblioteksgatan 2, Molnlycke, Sweden"]
[Date "2019.08.16"]
[Round "4.4"]
[White "Petersson, Baldur Teodor"]
[Black "Vypkhaniuk, Ihor"]
[Result "0-1"]
[TimeControl "15 minutes + 5 seconds per move from move one (Round 1 - 4) / 90 minutes + 30 seconds per move from move one (Round 5 - 8)"]
[WhiteTitle "CM"]
[BlackTitle "FM"]
[WhiteFideId "2309157"]
[BlackFideId "14112256"]
[WhiteElo "2255"]
[BlackElo "2405"]

1. e4 {[%clk 00:15:07]} {[%emt 00:01:28]} c5 {[%clk 00:15:09]} {[%emt
00:00:02]} 2. Nf3 {[%clk 00:15:10]} {[%emt 00:00:02]} Nc6 {[%clk 00:15:13]}
{[%emt 00:00:03]} 3. d3 {[%clk 00:15:12]} Nf6 {[%clk 00:15:10]} {[%emt
00:00:09]} 4. Nbd2 {[%clk 00:15:12]} {[%emt 00:00:05]} d5 {[%clk 00:15:12]}
{[%emt 00:00:03]} 5. g3 {[%clk 00:15:14]} {[%emt 00:00:04]} Bg4 {[%clk
00:15:11]} {[%emt 00:00:07]} 6. Bg2 {[%clk 00:15:06]} {[%emt 00:00:13]} e6
{[%clk 00:15:14]} {[%emt 00:00:02]} 7. O-O {[%clk 00:15:06]} {[%emt 00:00:04]}
Be7 {[%clk 00:15:17]} {[%emt 00:00:01]} 8. c3 {[%clk 00:15:04]} {[%emt
00:00:07]} Qc7 {[%clk 00:15:08]} {[%emt 00:00:14]} 9. Re1 {[%clk 00:14:49]}
{[%emt 00:00:20]} O-O {[%clk 00:15:08]} {[%emt 00:00:06]} 10. Qc2 {[%clk
00:14:45]} {[%emt 00:00:09]} Rfd8 {[%clk 00:14:55]} {[%emt 00:00:18]} 11. a3
{[%clk 00:14:45]} {[%emt 00:00:06]} dxe4 {[%clk 00:14:31]} {[%emt 00:00:29]} 12.
dxe4 {[%clk 00:14:43]} {[%emt 00:00:07]} b5 {[%clk 00:14:33]} {[%emt 00:00:03]}
13. Nf1 {[%clk 00:14:01]} {[%emt 00:00:46]} c4 {[%clk 00:14:17]} {[%emt
00:00:22]} 14. Bg5 {[%clk 00:13:46]} {[%emt 00:00:20]} Bxf3 {[%clk 00:13:21]}
{[%emt 00:01:02]} 15. Bxf3 {[%clk 00:13:49]} {[%emt 00:00:02]} Ne5 {[%clk
00:13:24]} {[%emt 00:00:01]} 16. Bg2 {[%clk 00:13:31]} {[%emt 00:00:23]} Nd3
{[%clk 00:13:28]} {[%emt 00:00:03]} 17. Re2 {[%clk 00:13:19]} {[%emt 00:00:15]}
Ng4 {[%clk 00:13:07]} {[%emt 00:00:27]} 18. Bxe7 {[%clk 00:13:03]} {[%emt
00:00:21]} Qxe7 {[%clk 00:13:11]} 19. h3 {[%clk 00:12:26]} {[%emt 00:00:43]}
Nge5 {[%clk 00:12:51]} {[%emt 00:00:26]} 20. f4 {[%clk 00:12:18]} {[%emt
00:00:13]} Nd7 {[%clk 00:12:53]} {[%emt 00:00:04]} 21. e5 {[%clk 00:11:46]}
{[%emt 00:00:37]} Rab8 {[%clk 00:12:50]} {[%emt 00:00:07]} 22. Nd2 {[%clk
00:11:34]} {[%emt 00:00:17]} N7c5 {[%clk 00:12:41]} {[%emt 00:00:15]} 23. Ne4
{[%clk 00:11:35]} {[%emt 00:00:04]} Nxe4 {[%clk 00:11:55]} {[%emt 00:00:50]} 24.
Bxe4 {[%clk 00:11:38]} {[%emt 00:00:02]} Qc5+ {[%clk 00:10:18]} {[%emt
00:01:42]} 25. Kg2 {[%clk 00:10:58]} {[%emt 00:00:45]} Rd7 {[%clk 00:10:21]}
{[%emt 00:00:02]} 26. a4 {[%clk 00:08:50]} {[%emt 00:02:12]} b4 {[%clk
00:10:16]} {[%emt 00:00:11]} 27. cxb4 {[%clk 00:08:47]} {[%emt 00:00:08]} Rxb4
{[%clk 00:10:19]} {[%emt 00:00:02]} 28. Bxd3 {[%clk 00:08:47]} {[%emt
00:00:05]} Rxd3 {[%clk 00:10:19]} {[%emt 00:00:05]} 29. Kh2 {[%clk 00:08:27]}
{[%emt 00:00:26]} Rbb3 {[%clk 00:10:04]} {[%emt 00:00:20]} 30. Rd1 {[%clk
00:08:17]} {[%emt 00:00:14]} h5 {[%clk 00:08:46]} {[%emt 00:01:23]} 31. Rxd3
{[%clk 00:06:31]} {[%emt 00:01:51]} Rxd3 {[%clk 00:08:50]} {[%emt 00:00:01]} 32.
h4 {[%clk 00:05:18]} {[%emt 00:01:17]} Qd5 {[%clk 00:08:22]} {[%emt 00:00:34]}
33. Rg2 {[%clk 00:05:02]} {[%emt 00:00:21]} g6 {[%clk 00:07:49]} {[%emt
00:00:38]} 34. Qf2 {[%clk 00:04:48]} {[%emt 00:00:18]} a5 {[%clk 00:07:53]}
{[%emt 00:00:02]} 35. Qc2 {[%clk 00:04:39]} {[%emt 00:00:14]} Rd1 {[%clk
00:07:28]} {[%emt 00:00:29]} 36. Qe2 {[%clk 00:02:54]} {[%emt 00:01:51]} Qd4
{[%clk 00:06:57]} {[%emt 00:00:36]} 37. Qf3 {[%clk 00:00:45]} {[%emt 00:02:13]}
Kg7 {[%clk 00:06:21]} {[%emt 00:00:41]} 38. Qc3 {[%clk 00:00:20]} {[%emt
00:00:31]} Qd5 {[%clk 00:04:02]} {[%emt 00:02:24]} 39. Qa3 {[%clk 00:00:24]}
{[%emt 00:00:01]} Qe4 {[%clk 00:03:03]} {[%emt 00:01:04]} 40. Qc3 {[%clk
00:00:20]} {[%emt 00:00:09]} Qb1 {[%clk 00:02:22]} {[%emt 00:00:45]} 41. g4
{[%clk 00:00:10]} {[%emt 00:00:15]} hxg4 {[%clk 00:02:10]} {[%emt 00:00:17]} 42.
Qxc4 {[%clk 00:00:11]} {[%emt 00:00:04]} Rh1+ {[%clk 00:02:09]} {[%emt
00:00:06]} 43. Kg3 {[%clk 00:00:15]} {[%emt 00:00:01]} Rh3+ {[%clk 00:01:51]}
{[%emt 00:00:22]} 44. Kxg4 {[%clk 00:00:16]} {[%emt 00:00:03]} Qf5# {[%clk
00:01:54]} {[%emt 00:00:02]} 0-1